Cogmind - Beta 13 @@@ ROGUE MODE // 2024.05.31 @ 00:12:20 Player: Sionnis Result: Self-destructed Performance ------------- Evolutions (7) 3500 Regions Visited (10) 2000 Robots Destroyed (3) 15 Value Destroyed (61) 61 Prototype IDs (1) 20 Alien Tech Used (0) 0 Bonus (1470) 1470 TOTAL SCORE: 7066 Bonus ------- Pacifist 470 Entered DSFs 1000 Cogmind --------- Core Integrity 1196/1300 Matter 217/300 Energy 161/170 System Corruption 4% Temperature Warm (181) Movement Flying (22) Location -3/Research Parts ------- > --- POWER (1) -------- Light Antimatter Reactor > --- PROPULSION (9) --- VTOL Module VTOL Module Cesium-ion Thruster Impulse Thruster Impulse Thruster Impulse Thruster > --- UTILITY (9) ------ Power Amplifier Weight Redist. System ECM Suite Hacking Suite System Shield > --- WEAPON (2) ------- Mace Enhanced Force Lance > --- INVENTORY (5) ---- Light Antimatter Reactor Impulse Thruster Hacking Suite Hacking Suite Heavy Missile Launcher Peak State ------------ > --- POWER ------------ Light Antimatter Reactor > --- PROPULSION ------- VTOL Module VTOL Module Cesium-ion Thruster Cesium-ion Thruster Impulse Thruster Impulse Thruster Impulse Thruster > --- UTILITY ---------- Power Amplifier Weight Redist. System ECM Suite Light Armor Plating Light Armor Plating Experimental Thermal Shield Hacking Suite System Shield > --- WEAPON ----------- Mace Mace > --- INVENTORY -------- Light Antimatter Reactor Impulse Thruster Hacking Suite Hacking Suite Heavy Missile Launcher [Rating: 69] Favorites ----------- Power Light Ion Engine Engine Light Ion Engine Power Core Micro Nuclear Core Reactor Light Antimatter Reactor Propulsion VTOL Module Flight Unit VTOL Module Utility Light Armor Plating Device Weight Redist. System Hackware Hacking Suite Protection Light Armor Plating Weapon Mace Impact Weapon Mace Piercing Weapon Enhanced Force Lance Build | -11 -10 -9 -8 -7 -7 -6 -5 -4 -4 -3 ------- Run | Yrd Mat Mat Mat Fac DSF Fac Fac Fac DSF Res Slots Evolved 14 | . . 2 2 2 . 2 2 2 . 2 Power . | . . . . . . . . . . . Propulsion 7 | . . 1 1 1 . 1 1 1 . 1 Utility 7 | . . 1 1 1 . 1 1 1 . 1 Weapon . | . . . . . . . . . . . Parts Attached 26 | 1 2 4 5 2 2 1 . . . 9 Power 3 | 1 . . . 1 . . . . . 1 Engine 1 | 1 . . . . . . . . . . Core 1 | . . . . 1 . . . . . . Reactor 1 | . . . . . . . . . . 1 Propulsion 11 | . 2 1 3 1 . 1 . . . 3 Treads . | . . . . . . . . . . . Leg . | . . . . . . . . . . . Wheel . | . . . . . . . . . . . Hover . | . . . . . . . . . . . Flight 11 | . 2 1 3 1 . 1 . . . 3 Utility 9 | . . 1 2 . 2 . . . . 4 Device 4 | . . . 1 . . . . . . 3 Storage . | . . . . . . . . . . . Processor . | . . . . . . . . . . . Hackware 3 | . . . . . 2 . . . . 1 Protection 2 | . . 1 1 . . . . . . . Artifact . | . . . . . . . . . . . Weapon 3 | . . 2 . . . . . . . 1 Energy Gun . | . . . . . . . . . . . Energy Cannon . | . . . . . . . . . . . Ballistic Gun . | . . . . . . . . . . . Ballistic Cannon . | . . . . . . . . . . . Launcher . | . . . . . . . . . . . Special Weapon . | . . . . . . . . . . . Impact Weapon 2 | . . 2 . . . . . . . . Slashing Weapon . | . . . . . . . . . . . Piercing Weapon 1 | . . . . . . . . . . 1 Special Melee Weapon . | . . . . . . . . . . . Unidentified Prototypes 1 | . . . . . . . . . . 1 Parts Lost 6 | . . . . . . . . . . 6 Power . | . . . . . . . . . . . Propulsion 3 | . . . . . . . . . . 3 Utility 3 | . . . . . . . . . . 3 Weapon . | . . . . . . . . . . . Highest Loss Streak 6 | . . . . . . . . . . 6 To Critical Strikes . | . . . . . . . . . . . Average Slot Usage (%) 74 | . 28 60 79 84 92 93 82 . 73 80 Engine 4 | . 14 11 9 7 . . . . . . Core 1 | . . . . . 7 6 5 . 5 1 Reactor 1 | . . . . . . . . . . 2 Flight 33 | . 14 33 36 38 38 40 35 . 31 35 Device 7 | . . . . 7 7 6 5 . 5 12 Hackware 6 | . . . . . 7 13 11 . 10 11 Protection 7 | . . . 16 15 15 13 11 . 10 5 Impact Weapon 10 | . . 16 18 15 15 13 11 . 10 6 Naked Turns . | . . . . . . . . . . . Heaviest Build 31 | 3 3 10 13 16 16 16 16 16 16 31 Greatest Support 48 | 3 8 12 24 22 22 27 27 27 27 48 Greatest Overweight (x) 5 | . . . . . 5 . . . . . Average Overweight (x) . | . . . . . . . . . . . Largest Inventory Capacity 5 | 5 5 5 5 5 5 5 5 5 5 5 Average Capacity 5 | 5 5 5 5 5 5 5 5 5 5 5 Most Carried 5 | . 2 3 4 5 5 4 4 4 4 5 Average Carried 3 | . . 1 3 3 4 4 4 4 4 4 Final Capacity 5 | 5 5 5 5 5 5 5 5 5 5 5 Final Carried 5 | . 2 3 4 5 5 4 4 4 4 5 Class Distribution -------------------- 64% | Hacker-Sprinter 28% | Sprinter 6% | Mutant Dominant Class ---------------- Mutant | -10/Materials Sprinter | -9/Materials Sprinter | -8/Materials Sprinter | -7/Factory Sprinter | -7/DSF Sprinter | -6/Factory Sprinter | -5/Factory Hacker-Sprinter | -4/Factory Hacker-Sprinter | -4/DSF Hacker-Sprinter | -3/Research Resources | -11 -10 -9 -8 -7 -7 -6 -5 -4 -4 -3 ----------- Run | Yrd Mat Mat Mat Fac DSF Fac Fac Fac DSF Res Matter Collected 352 | 134 . . 51 . 9 . . . . 158 Remotely . | . . . . . . . . . . . Salvage Created 235 | . . . 51 . 26 . . . . 158 Parts 3 | . . . 1 . . . . . . 2 Haulers Intercepted 2 | . . . 1 . . . . . . 1 Recyclers Shooed . | . . . . . . . . . . . Parts Field Recycled . | . . . . . . . . . . . Retrieved Matter . | . . . . . . . . . . . Parts Self-Destructed . | . . . . . . . . . . . Prevented . | . . . . . . . . . . . Kills | -11 -10 -9 -8 -7 -7 -6 -5 -4 -4 -3 ------- Run | Yrd Mat Mat Mat Fac DSF Fac Fac Fac DSF Res Combat Hostiles Destroyed . | . . . . . . . . . . . Classes Destroyed 2 | . . . 1 . . . . . . 1 Hauler 2 | . . . 1 . . . . . . 1 Watcher 1 | . . . . . . . . . . 1 Best Kill Streak 2 | . . . 1 . . . . . . 2 Combat Bots Only . | . . . . . . . . . . . Max Kills in Single Turn 1 | . . . 1 . . . . . . 1 Gunslinging . | . . . . . . . . . . . Exploded . | . . . . . . . . . . . Melee . | . . . . . . . . . . . Uniques/NPCs Destroyed . | . . . . . . . . . . . Combat | -11 -10 -9 -8 -7 -7 -6 -5 -4 -4 -3 -------- Run | Yrd Mat Mat Mat Fac DSF Fac Fac Fac DSF Res Hostile Shots Fired 51 | . . 6 . . 9 . 2 . . 34 Missed 21 | . . 1 . . 5 . 2 . . 13 Damage Taken 676 | . . 79 19 . 75 . . . . 503 Core 171 | . . 29 . . 38 . . . . 104 Absorbed by Shields . | . . . . . . . . . . . Core Remaining (%) 98 | 100 100 92 100 . 94 100 100 . 100 . Volleys Fired . | . . . . . . . . . . . Largest . | . . . . . . . . . . . Hottest . | . . . . . . . . . . . Shots Fired . | . . . . . . . . . . . Gun . | . . . . . . . . . . . Cannon . | . . . . . . . . . . . Launcher . | . . . . . . . . . . . Special . | . . . . . . . . . . . Kinetic . | . . . . . . . . . . . Thermal . | . . . . . . . . . . . Explosive . | . . . . . . . . . . . Electromagnetic . | . . . . . . . . . . . Robot Hit Streak . | . . . . . . . . . . . Robot Miss Streak . | . . . . . . . . . . . Penetration Max . | . . . . . . . . . . . Secondary Targets . | . . . . . . . . . . . Shots Hit Robots 7 | . . . 4 . 1 . . . . 2 Core Hits 1 | . . . 1 . . . . . . . Critical Kills . | . . . . . . . . . . . Critical Parts Destroyed 2 | . . . . . 1 . . . . 1 Critical Strikes 2 | . . . . . 1 . . . . 1 Smash 2 | . . . . . 1 . . . . 1 Melee Attacks 23 | . . 5 9 . 2 . . . . 7 Impact 21 | . . 5 9 . 2 . . . . 5 Slashing . | . . . . . . . . . . . Piercing 2 | . . . . . . . . . . 2 Sneak Attacks 2 | . . . 1 . . . . . . 1 Combat Hostiles . | . . . . . . . . . . . Follow-up Attacks 2 | . . . 1 . . . . . . 1 Damage Inflicted 333 | . . . 162 . 43 . . . . 128 Guns . | . . . . . . . . . . . Cannons . | . . . . . . . . . . . Explosions . | . . . . . . . . . . . Melee 333 | . . . 162 . 43 . . . . 128 Ramming . | . . . . . . . . . . . Kinetic . | . . . . . . . . . . . Thermal . | . . . . . . . . . . . Explosive . | . . . . . . . . . . . Electromagnetic . | . . . . . . . . . . . Impact 333 | . . . 162 . 43 . . . . 128 Slashing . | . . . . . . . . . . . Piercing . | . . . . . . . . . . . Highest Corruption 4 | 1 1 . . . . . . . . 4 Average Corruption 2 | 1 1 . . . . . . . . 2 Corruption Purged . | . . . . . . . . . . . Corruption Blocked . | . . . . . . . . . . . Effects 2 | . . . . . . . . . . 2 Matter Fused 1 | . . . . . . . . . . 1 Heat Flow Errors 1 | . . . . . . . . . . 1 Overload Shots . | . . . . . . . . . . . Overflow Damage 147 | . . . . . 43 . . . . 104 Projectiles . | . . . . . . . . . . . Explosions . | . . . . . . . . . . . Melee 147 | . . . . . 43 . . . . 104 Knockbacks 1 | . . . . . 1 . . . . . Impact 1 | . . . . . 1 . . . . . Kinetic . | . . . . . . . . . . . Secondary . | . . . . . . . . . . . Self-Inflicted Damage . | . . . . . . . . . . . Shots . | . . . . . . . . . . . Rammed 1 | 1 . . . . . . . . . . Targets Rammed 1 | 1 . . . . . . . . . . Kicked . | . . . . . . . . . . . Crushed . | . . . . . . . . . . . Highest Temperature 301 | . . 22 . 46 . 132 27 . . 301 Average Temperature 110 | . . 12 . 23 . 68 15 . . 129 Received Heat Transfer 84 | . . 36 . . 18 . . . . 30 Siege Activations . | . . . . . . . . . . . Robots Corrupted . | . . . . . . . . . . . Combat Hostiles . | . . . . . . . . . . . Parts Fried 2 | . . . . . . . . . . 2 Impact Corruptions 4 | . . . . . 1 . . . . 3 Robots Melted . | . . . . . . . . . . . Combat Hostiles . | . . . . . . . . . . . Parts Melted . | . . . . . . . . . . . Heat Transferred . | . . . . . . . . . . . Parts Sabotaged . | . . . . . . . . . . . Parts Stolen . | . . . . . . . . . . . Parts Stripped . | . . . . . . . . . . . Power Chain Reactions . | . . . . . . . . . . . Alert | -11 -10 -9 -8 -7 -7 -6 -5 -4 -4 -3 ------- Run | Yrd Mat Mat Mat Fac DSF Fac Fac Fac DSF Res Peak Influence 370 | . 15 54 30 13 10 19 9 4 4 370 Initial 22 | . . 5 22 13 9 4 9 4 4 2 Average 81 | . 7 23 24 13 9 8 9 4 4 157 Maximum Alert Level 1 | . . . . . . . . . . 1 Low Security (%) 80 | 100 100 100 100 100 100 100 100 100 100 57 Level 1 19 | . . . . . . . . . . 42 Level 2 . | . . . . . . . . . . . Level 3 . | . . . . . . . . . . . Level 4 . | . . . . . . . . . . . Level 5 . | . . . . . . . . . . . High Security . | . . . . . . . . . . . Max Security . | . . . . . . . . . . . Squads Dispatched 3 | . . . . . 1 . . . . 2 Investigation 1 | . . . . . . . . . . 1 Extermination . | . . . . . . . . . . . Reinforcement 2 | . . . . . 1 . . . . 1 Assault . | . . . . . . . . . . . Garrison . | . . . . . . . . . . . Intercept . | . . . . . . . . . . . Searches Triggered . | . . . . . . . . . . . Construction Impeded . | . . . . . . . . . . . Haulers Reinforced . | . . . . . . . . . . . Active Scanning Responses . | . . . . . . . . . . . Cargo Convoy Interrupts . | . . . . . . . . . . . Stealth | -11 -10 -9 -8 -7 -7 -6 -5 -4 -4 -3 --------- Run | Yrd Mat Mat Mat Fac DSF Fac Fac Fac DSF Res Distress Signals 1 | . . . . . . . . . . 1 Communications Jammed . | . . . . . . . . . . . Distress Signals . | . . . . . . . . . . . Times Spotted 34 | . 2 2 1 . 4 . 1 . 1 23 Peak Tracking Total 11 | . 3 4 2 . 4 . 1 . 1 11 Tactical Retreats 6 | . . . . . . . . . . 6 Traps | -11 -10 -9 -8 -7 -7 -6 -5 -4 -4 -3 ------- Run | Yrd Mat Mat Mat Fac DSF Fac Fac Fac DSF Res Traps Triggered 3 | . . . 1 . 1 . . . . 1 Indirectly . | . . . . . . . . . . . Trap Hack Attempts . | . . . . . . . . . . . Triggered . | . . . . . . . . . . . Disarmed . | . . . . . . . . . . . Reprogrammed . | . . . . . . . . . . . Reused . | . . . . . . . . . . . Traps Extracted . | . . . . . . . . . . . Installed . | . . . . . . . . . . . Triggered . | . . . . . . . . . . . Machines | -11 -10 -9 -8 -7 -7 -6 -5 -4 -4 -3 ---------- Run | Yrd Mat Mat Mat Fac DSF Fac Fac Fac DSF Res Machines Disabled . | . . . . . . . . . . . Max in Single Turn . | . . . . . . . . . . . Machines Repaired . | . . . . . . . . . . . Machines Dismantled . | . . . . . . . . . . . Machines Sabotaged . | . . . . . . . . . . . Overloaded Fab Kills . | . . . . . . . . . . . Hacking | -11 -10 -9 -8 -7 -7 -6 -5 -4 -4 -3 --------- Run | Yrd Mat Mat Mat Fac DSF Fac Fac Fac DSF Res Machines Accessed 8 | . 2 1 . 1 . . . 1 . 3 Terminals 8 | . 2 1 . 1 . . . 1 . 3 Fabricators . | . . . . . . . . . . . Repair Stations . | . . . . . . . . . . . Recycling Units . | . . . . . . . . . . . Scanalyzers . | . . . . . . . . . . . Garrison Access . | . . . . . . . . . . . Total Hacks 17 | . 5 4 . 1 . . . 1 . 6 Successful 8 | . 1 1 . 1 . . . 1 . 4 Failed 8 | . 4 2 . . . . . . . 2 Catastrophic 1 | . . . . . . . . . . 1 Database Lockouts 1 | . . 1 . . . . . . . . Manual 12 | . 5 5 . . . . . . . 2 Terminals 17 | . 5 4 . 1 . . . 1 . 6 Fabricators . | . . . . . . . . . . . Repair Stations . | . . . . . . . . . . . Recycling Units . | . . . . . . . . . . . Scanalyzers . | . . . . . . . . . . . Garrison Access . | . . . . . . . . . . . Terminal Hacks 8 | . 1 1 . 1 . . . 1 . 4 Robot Analysis 2 | . 1 1 . . . . . . . . Open DSF 3 | . . . . 1 . . . 1 . 1 Level Access Points 1 | . . . . . . . . . . 1 Branch Access Points 1 | . . . . . . . . . . 1 Emergency Access Points 1 | . . . . . . . . . . 1 Fabricator Hacks . | . . . . . . . . . . . Repair Station Hacks . | . . . . . . . . . . . Recycling Unit Hacks . | . . . . . . . . . . . Scanalyzer . | . . . . . . . . . . . Garrison Access Hacks . | . . . . . . . . . . . Unauthorized Hacks . | . . . . . . . . . . . Terminals . | . . . . . . . . . . . Fabricators . | . . . . . . . . . . . Repair Stations . | . . . . . . . . . . . Recycling Units . | . . . . . . . . . . . Scanalyzers . | . . . . . . . . . . . Garrison Access . | . . . . . . . . . . . Data Cores Recovered . | . . . . . . . . . . . Used . | . . . . . . . . . . . Hacking Detections 5 | . 2 1 . . . . . . . 2 Full Trace Events 1 | . . . . . . . . . . 1 Feedback Events . | . . . . . . . . . . . Feedback Blocked . | . . . . . . . . . . . Robot Schematics Acquired . | . . . . . . . . . . . Robots Built . | . . . . . . . . . . . Authchips . | . . . . . . . . . . . Time . | . . . . . . . . . . . Total Robot Build Rating . | . . . . . . . . . . . Part Schematics Acquired . | . . . . . . . . . . . Parts Built . | . . . . . . . . . . . Authchips . | . . . . . . . . . . . Time . | . . . . . . . . . . . Total Part Build Rating . | . . . . . . . . . . . Parts Repaired . | . . . . . . . . . . . Time . | . . . . . . . . . . . Parts Recycled . | . . . . . . . . . . . Recycled Matter . | . . . . . . . . . . . Retrieved Matter . | . . . . . . . . . . . Retrieved Components . | . . . . . . . . . . . Parts Scanalyzed . | . . . . . . . . . . . Part Schematics Acquired . | . . . . . . . . . . . Parts Damaged . | . . . . . . . . . . . Bothacking | -11 -10 -9 -8 -7 -7 -6 -5 -4 -4 -3 ------------ Run | Yrd Mat Mat Mat Fac DSF Fac Fac Fac DSF Res Used RIF Installer . | . . . . . . . . . . . Robots Hacked . | . . . . . . . . . . . Non-combat . | . . . . . . . . . . . Combat . | . . . . . . . . . . . Robot Hacks Applied . | . . . . . . . . . . . Relay Couplers Released . | . . . . . . . . . . . Fabnet Peak Effective % . | . . . . . . . . . . . Robots Rewired . | . . . . . . . . . . . Allies Hacked . | . . . . . . . . . . . Hacks Repelled . | . . . . . . . . . . . Allies | -11 -10 -9 -8 -7 -7 -6 -5 -4 -4 -3 -------- Run | Yrd Mat Mat Mat Fac DSF Fac Fac Fac DSF Res Total Allies . | . . . . . . . . . . . Largest Group . | . . . . . . . . . . . Highest-Rated Group . | . . . . . . . . . . . Highest-Rated Ally . | . . . . . . . . . . . Total Orders . | . . . . . . . . . . . Ally Attacks . | . . . . . . . . . . . Total Damage . | . . . . . . . . . . . Kills . | . . . . . . . . . . . Allies Corrupted . | . . . . . . . . . . . Allies Melted . | . . . . . . . . . . . Intel | -11 -10 -9 -8 -7 -7 -6 -5 -4 -4 -3 ------- Run | Yrd Mat Mat Mat Fac DSF Fac Fac Fac DSF Res Robot Analysis Total 2 | . 1 1 . . . . . . . . Derelict Logs Recovered . | . . . . . . . . . . . Drone Launches . | . . . . . . . . . . . Drone Recoveries . | . . . . . . . . . . . Exploration | -11 -10 -9 -8 -7 -7 -6 -5 -4 -4 -3 ------------- Run | Yrd Mat Mat Mat Fac DSF Fac Fac Fac DSF Res Turns Passed 378 | 12 31 45 49 19 19 13 7 1 6 176 Spaces Moved 1146 | 18 65 91 83 68 32 57 30 5 30 667 Core 49 | 18 30 . . . 1 . . . . . Treads . | . . . . . . . . . . . Legs . | . . . . . . . . . . . Wheels . | . . . . . . . . . . . Hover . | . . . . . . . . . . . Flight 1097 | . 35 91 83 68 31 57 30 5 30 667 Fastest Speed 12 | 50 32 29 26 23 23 20 20 20 20 12 Average Speed 23 | 50 40 29 26 23 31 20 20 20 20 20 Slowest Speed 300 | 50 50 29 26 23 300 20 20 20 20 24 Overloaded Moves . | . . . . . . . . . . . Propulsion Burnouts . | . . . . . . . . . . . Robots Hopped 6 | . 1 1 . 1 . . . . . 3 Cave-ins Triggered . | . . . . . . . . . . . Exploration Rate (%) 16 | 3 18 17 11 2 44 4 2 . 41 22 Regions Visited 10 Branch Regions . Pre-discovered Areas . | . . . . . . . . . . . Known Exits Taken 2 | . . . . 1 . . . 1 . . Unknown Exits Taken 6 | 1 1 1 1 . . 1 1 . . . Scrap Searched . | . . . . . . . . . . . Spaces Dug 8 | . . 4 1 . 1 . . . . 2 Terrain Destroyed 8 | . . 4 1 . 1 . . . . 2 Melee 8 | . . 4 1 . 1 . . . . 2 Projectile . | . . . . . . . . . . . AOE . | . . . . . . . . . . . Terrain Rammed . | . . . . . . . . . . . Walls Destroyed . | . . . . . . . . . . . Machines Disabled . | . . . . . . . . . . . Actions | -11 -10 -9 -8 -7 -7 -6 -5 -4 -4 -3 --------- Run | Yrd Mat Mat Mat Fac DSF Fac Fac Fac DSF Res Total 1199 | 19 67 99 95 69 39 57 30 4 29 691 Wait 5 | . . . . . . . 1 . . 4 Move 1125 | 17 62 88 82 65 31 56 29 4 29 662 Hop 5 | . 1 1 . 1 . . . . . 2 Pick Up 11 | . 2 2 1 1 2 . . . . 3 Fast Attach 18 | 1 2 3 1 . 2 . . . . 9 Attach 5 | . . 1 2 1 . 1 . . . . Detach . | . . . . . . . . . . . Swap 3 | . . . 2 1 . . . . . . Drop 7 | . . . . . 2 . . . . 5 Fire . | . . . . . . . . . . . Melee 19 | . . 4 7 . 2 . . . . 6 Ram 1 | 1 . . . . . . . . . . Kick . | . . . . . . . . . . . Crush . | . . . . . . . . . . . Escape Stasis . | . . . . . . . . . . . Rewire . | . . . . . . . . . . . Trap . | . . . . . . . . . . . Miscellaneous . | . . . . . . . . . . . Route ------- -11/Scrapyard -10/Materials -9/Materials (discovered 2 exits: [*Mat] / [*Sto]) -8/Materials -7/Factory (discovered 2 exits: [*Low] / DSF) -7/DSF -6/Factory -5/Factory -4/Factory -4/DSF -3/Research (discovered 6 exits: *Res x3 / Arm / *Tes x2) History --------- Turn | Location | Event 3 | -11/Scrapyard | Discovered new exit (range 15) 13 | -11/Scrapyard | Entered Materials 41 | -10/Materials | Discovered new exit (range 12) 44 | -10/Materials | Entered another Materials area 44 | -9/Materials | Evolved 2 slots: Propulsion x1, Utility x1 46 | -9/Materials | Central database locked down 86 | -9/Materials | Discovered new exit (range 4) 87 | -9/Materials | Discovered new exit (range 9) 89 | -9/Materials | Entered another Materials area 89 | -8/Materials | Evolved 2 slots: Propulsion x1, Utility x1 138 | -8/Materials | Discovered new exit (range 4) 138 | -8/Materials | Entered Factory 138 | -7/Factory | Evolved 2 slots: Propulsion x1, Utility x1 145 | -7/Factory | Discovered new exit (range 15) 157 | -7/Factory | Identified exit to DSF 157 | -7/Factory | Entered DSF 170 | -7/DSF | Discovered new exit (range 14) 174 | -7/DSF | Additional patrols routed to DSF 176 | -7/DSF | Entered Factory 176 | -6/Factory | Evolved 2 slots: Propulsion x1, Utility x1 187 | -6/Factory | Discovered new exit (range 13) 189 | -6/Factory | Entered another Factory area 189 | -5/Factory | Evolved 2 slots: Propulsion x1, Utility x1 192 | -5/Factory | Discovered new exit (range 16) 196 | -5/Factory | Entered another Factory area 196 | -4/Factory | Evolved 2 slots: Propulsion x1, Utility x1 197 | -4/Factory | Identified exit to DSF 197 | -4/Factory | Entered DSF 201 | -4/DSF | Discovered new exit (range 12) 203 | -4/DSF | Entered Research 203 | -3/Research | Evolved 2 slots: Propulsion x1, Utility x1 230 | -3/Research | Identified exit to Research 231 | -3/Research | Discovered new exit (range 11) 287 | -3/Research | Identified exit to Armory 287 | -3/Research | Identified exit to Testing 294 | -3/Research | Spotted B-86 Titan 301 | -3/Research | Found Prototype Device 301 | -3/Research | Identified Exp. Thermal Shield 304 | -3/Research | Found Enh. Force Lance 345 | -3/Research | Lost 6 parts (3n3u) 379 | -3/Research | Self-destructed Last Messages --------------- 00295_ S-43 Plague destroyed. 00295_ Knocked back. 00295_ Penetrated by Slug. 00297_ VTOL Module destroyed. 00301_ Acquired Prototype Device. 00301_ Identified Exp. Thermal Shield. 00301_ Faulty integration triggers system corruption (+3). 00302_ Dropped Faulty Exp. Thermal Shield. 00303_ Slug penetrates Wall. 00304_ Dropped Mace. 00304_ ALERT: Hostiles spotted, dispatching reinforcements to Terminal R014. 00304_ Acquired Enh. Force Lance. 00307_ Lgt. Armor Plating destroyed. 00311_ System corrupted: Matter fused (-9). 00314_ Cesium-ion Thruster destroyed. 00327_ System corrupted: Heat flow error (+268). 00336_ Connecting with DSF Access... 00345_ Penetrated by Slug. Map ----- +----------------------------------------------------+ | ????######## #??# S #??# #????# | | ????# #??# "" #??# #????# | | ????# #??# "" #??# #????# | | ????# #??# "" ##########+########### | | ????+ #??# # | | ????# ########??# / | | ????# ########### # | | ????# # ! " + | | ????# # #########+##### ########## | | ????# # !!!#???# # ########## | | ????# # !! #???# ! # # # | | ????+ / ! !! #???# """ # # # | | ????# # #???# """ # # # | | ????# # = #???# """ # # # | | ????# # #???# = # # + | | ????################???# / # #= # | | ???????????????????????#! # # ! # | | ???????????????????###########+### ########## | | ???????????????????# | | ???????????????????# | | ???????????????????# | | ???????????????????# | | ???????????????????# ######+################# | | ???????????????????# #???# #??????????# | | ???????????????????# ##### #??????????# | | ???????????????????+ @ + ""#??????????# | | ???????????????????# ##### ""#??????????# | | ???????????????????# #???#! ""#??????????# | | ???????????????????+ #???# S#??????????# | | ???????????????????##+###???# = ""#??????????# | | ????????????????????????????# ""#??????????# | | ????????????????????????????#// ""#??????????# | | ????????????????????????????#/ ???????????# | | ????????????????????????????# ???????????# | | ????????????????????????????####### ???????????# | | ???????????????????????????????????#???????????# | | ??????????????????????>????????????????????????# | | ???????????????????????????????????????????????# | | ?????????????????????????????????????########### | | ?????????????????????????????????????# # | | ?????????????????????????????????????# # | | ?????????????????????????????????????# # | | ?????????????????????????????????????# ! + | | ?????????????????????????????????????# # | | ?????????????????????????????????????# # | | ?????????????????????????????????????# ""T"" # | | ?????????????????????????????????????# """"" # | | ?????????????????????????????????????########### | | ???????????????????????????????????????????????# | | ???????????????????????????????????????????????# | +----------------------------------------------------+ Best States ------------- Heat Dissipation 46 Energy Generation 24 Energy Capacity 170 Matter Stores 231 Matter Capacity 300 Sight Range 16 Terrain Scan Density 10 Power Amplification 20 Additional Mass Support 6 Armor Coverage 300 Evasion (%) 66 Offensive Hacking 20 Defensive Hacking 10 Item Schematics ----------------- None Robot Schematics ------------------ None Fabricated ------------ Nothing Alien Tech Used ----------------- None Achievements -------------- None Challenges ------------ None Game ------ Seed Gottagofast Manual? 1 Play Time 00:18:10 Cumulative 142.3 hours Start 2024.05.30 @ 23:46:54 End 2024.05.31 @ 00:12:20 Sessions 1 Manual Loads 0 Difficulty Rogue Special Mode None Game No. 130 Rogue 130 Adventurer 0 Explorer 0 Win Type - Total 4 Types 3/0/0/1/0/0/0/0/0 Lore% 64 Gallery% 76 Achievement% 57 Wizard Run 0 Options --------- Layout 1 ASCII 0 Keyboard 0 Movement Numpad Keybinds 0 Fullscreen 1 Font 24/Smallcaps Map View 50x35 Zoom Use 0% Tactical HUD 1 Map Filters NONE Filters NONE Steam 1 RUN: 28baabbf-6860-43aa-b167-6d686a505121